fUSD/lending_fUSD_20240421
["ID","MTS","AMOUNT","RATE_DAILY","PERIOD"]
[323131167,1713701444030,-500.0,0.00016438,2]
[323131168,1713701444040,-500.0,0.00016438,2]
[323131169,1713701444049,-500.0,0.00016438,2]
[323131170,1713701444058,-500.0,0.00016438,2]
[323131171,1713701444067,-500.0,0.00016438,2]
[323131172,1713701444075,-793.96,0.00016438,2]
[323131173,1713701444085,-2542.44,0.00016438,2]
[323131174,1713701444094,-500.0,0.00016438,2]
[323131175,1713701444103,-1396.3,0.00016438,2]
[323131176,1713701444288,-879.52,0.00016438,2]
[323131177,1713701444298,-500.0,0.00016438,2]
[323131178,1713701444308,-500.0,0.00016438,2]
[323131179,1713701444317,-1476.27,0.00016438,2]
[323131180,1713701444326,-500.0,0.00016438,2]
[323131181,1713701444338,-500.0,0.00016438,2]
[323131182,1713701444346,-500.0,0.00016438,2]
[323131183,1713701444355,-500.0,0.00016438,2]
[323131184,1713701444364,-500.0,0.00016438,2]
[323131185,1713701444373,-798.14,0.00016438,2]
[323131186,1713701444382,-500.0,0.00016438,2]
[323131187,1713701444391,-500.0,0.00016438,2]
[323131188,1713701444400,-500.0,0.00016438,2]
[323131189,1713701444410,-1525.8,0.00016438,2]
[323131190,1713701444419,-604.28,0.00016438,2]
[323131191,1713701444429,-1120.59,0.00016438,2]
[323131192,1713701444438,-500.0,0.00016438,2]
[323131193,1713701444447,-500.0,0.00016438,2]
[323131194,1713701444457,-1405.45,0.00016438,2]
[323131195,1713701444466,-338.82634515,0.00016438,2]
[323131196,1713701444475,-500.07485068,0.00016438,2]
[323131197,1713701444484,-718.88,0.00016438,2]
[323131198,1713701444494,-1037.34,0.00016438,2]
[323131199,1713701444503,-500.53873691,0.00016438,2]
[323131200,1713701444512,-500.0,0.00016438,2]
[323131201,1713701444520,-1039.47,0.00016438,2]
[323131202,1713701444529,-285.34,0.00016438,2]
[323131203,1713701444538,-500.0,0.00016438,2]
[323131204,1713701444547,-500.0,0.00016438,2]
[323131205,1713701444555,-506.14,0.00016438,2]
[323131206,1713701444565,-853.19,0.00016438,2]
[323131207,1713701444573,-500.0,0.00016438,2]
[323131208,1713701444582,-500.0,0.00016438,2]
[323131209,1713701444591,-629.16264674,0.00016438,2]
[323131210,1713701444601,-1295.15,0.00016438,2]
[323131211,1713701444609,-1296.53,0.00016438,2]
[323131212,1713701444618,-1180.31,0.00016438,2]
[323131213,1713701444627,-1340.14,0.00016438,2]
[323131214,1713701444636,-500.0,0.00016438,2]
[323131215,1713701444645,-500.0,0.00016438,2]
[323131216,1713701444654,-831.36,0.00016438,2]
[323131217,1713701444663,-500.0,0.00016438,2]
[323131218,1713701444672,-870.29,0.00016438,2]
[323131219,1713701444681,-153.73158109,0.00016438,2]
[323131220,1713701444690,-500.0,0.00016438,2]
[323131221,1713701444699,-425.14,0.00016438,2]
[323131222,1713701444711,-500.0,0.00016438,2]
[323131223,1713701444720,-1117.68,0.00016438,2]
[323131224,1713701444729,-500.0,0.00016438,2]
[323131225,1713701444738,-534.82,0.00016438,2]
[323131226,1713701444747,-1207.58,0.00016438,2]
[323131227,1713701444756,-500.0,0.00016438,2]
[323131228,1713701444765,-1479.14,0.00016438,2]
[323131229,1713701444774,-500.0,0.00016438,2]
[323131230,1713701444783,-621.89,0.00016438,2]
[323131231,1713701444792,-500.0,0.00016438,2]
[323131232,1713701444801,-500.0,0.00016438,2]
[323131233,1713701444810,-500.0,0.00016438,2]
[323131234,1713701444820,-1624.67,0.00016438,2]
[323131235,1713701444829,-500.0,0.00016438,2]
[323131236,1713701444840,-154.84,0.00016438,2]
[323131237,1713701444851,-1090.2,0.00016438,2]
[323131238,1713701444861,-500.0,0.00016438,2]
[323131239,1713701444871,-500.0,0.00016438,2]
[323131240,1713701444880,-500.0,0.00016438,2]
[323131241,1713701444889,-1388.71,0.00016438,2]
[323131242,1713701444898,-500.0,0.00016438,2]
[323131243,1713701444907,-500.0,0.00016438,2]
[323131244,1713701444916,-1610.93,0.00016438,2]
[323131245,1713701444925,-500.0,0.00016438,2]
[323131246,1713701444934,-500.0,0.00016438,2]
[323131247,1713701444943,-500.0,0.00016438,2]
[323131248,1713701444953,-500.0,0.00016438,2]
[323131249,1713701444962,-500.0,0.00016438,2]
[323131250,1713701444971,-1549.11,0.00016438,2]
[323131251,1713701444980,-842.29,0.00016438,2]
[323131252,1713701444989,-371.69542284,0.00016438,2]
[323131253,1713701444998,-327.27,0.00016438,2]
[323131254,1713701445007,-944.8,0.00016438,2]
[323131255,1713701445016,-82380.98719114,0.00016438,2]
[323131256,1713701445026,-786.76,0.00016438,2]
[323131257,1713701445034,-184.49,0.00016438,2]
[323131258,1713701445043,-500.0,0.00016438,2]
[323131259,1713701445052,-500.0,0.00016438,2]
[323131260,1713701445061,-2226.07,0.00016438,2]
[323131261,1713701445070,-1039.68,0.00016438,2]
[323131262,1713701445080,-757.45,0.00016438,2]
[323131263,1713701445089,-500.0,0.00016438,2]
[323131264,1713701445098,-686.77,0.00016438,2]
[323131265,1713701445107,-500.0,0.00016438,2]
[323131266,1713701445116,-485.47,0.00016438,2]
[323131267,1713701445125,-500.0,0.00016438,2]
[323131268,1713701445134,-1071.58,0.00016438,2]
[323131269,1713701445144,-500.0,0.00016438,2]
[323131270,1713701445153,-1631.28,0.00016438,2]
[323131271,1713701445162,-500.0,0.00016438,2]
[323131272,1713701445171,-500.0,0.00016438,2]
[323131273,1713701445180,-550.82,0.00016438,2]
[323131274,1713701445189,-500.0,0.00016438,2]
[323131275,1713701445199,-1157.17,0.00016438,2]
[323131276,1713701445211,-500.0,0.00016438,2]
[323131277,1713701445221,-1035.79,0.00016438,2]
[323131278,1713701445230,-500.0,0.00016438,2]
[323131279,1713701445241,-703.25,0.00016438,2]
[323131280,1713701445251,-500.0,0.00016438,2]
[323131281,1713701445264,-500.0,0.00016438,2]
[323131282,1713701445274,-1312.21,0.00016438,2]
[323131283,1713701445283,-500.0,0.00016438,2]
[323131284,1713701445292,-620.4670134,0.00016438,2]
[323131285,1713701445303,-500.0,0.00016438,2]
[323131286,1713701445312,-2139.81,0.00016438,2]
[323131287,1713701445321,-928.4,0.00016438,2]
[323131288,1713701445330,-772.99,0.00016438,2]
[323131289,1713701445340,-500.0,0.00016438,2]
[323131290,1713701445350,-712.88,0.00016438,2]
[323131291,1713701445358,-500.0,0.00016438,2]
[323131292,1713701445368,-166.69,0.00016438,2]
[323131293,1713701445376,-500.0,0.00016438,2]
[323131294,1713701445386,-500.0,0.00016438,2]
[323131295,1713701445395,-2370.1,0.00016438,2]
[323131296,1713701445404,-500.0,0.00016438,2]
[323131297,1713701445413,-500.0,0.00016438,2]
[323131298,1713701445422,-1011.37,0.00016438,2]
[323131299,1713701445431,-500.0,0.00016438,2]
[323131300,1713701445441,-671.15,0.00016438,2]
[323131301,1713701445449,-1140.73,0.00016438,2]
[323131302,1713701445461,-1375.42,0.00016438,2]
[323131303,1713701445470,-834.33,0.00016438,2]
[323131304,1713701445480,-719.01,0.00016438,2]
[323131305,1713701445489,-500.0,0.00016438,2]
[323131306,1713701445498,-500.0,0.00016438,2]
[323131307,1713701445507,-500.0,0.00016438,2]
[323131308,1713701445516,-500.0,0.00016438,2]
[323131309,1713701445525,-210.92512877,0.00016438,2]
[323131310,1713701445534,-5903.58,0.00016438,2]
[323131311,1713701445544,-539.0,0.00016439,2]
[323131312,1713701445553,-868.0,0.00016439,2]
[323131313,1713701445563,-205.99988575,0.00016488,2]
[323131314,1713701445573,-155.0,0.00016488,2]
[323131315,1713701445582,-156.02054303,0.00016488,2]
[323131316,1713701445591,-1297.79891384,0.00016488,2]
[323131317,1713701445600,-164.41187651,0.00016488,2]
[323131318,1713701445609,-264.01498696,0.00016488,2]
[323131319,1713701445618,-264.96246722,0.00016488,2]
[323131320,1713701445628,-1286.9644418,0.00016489,2]
[323131321,1713701445637,-358.22122567,0.00016489,2]
[323131322,1713701445652,-600.50056473,0.000165,2]
[323131323,1713701445662,-150.0,0.000165,2]
[323131324,1713701445672,-2343.30196798,0.00016553,2]
[323131325,1713701445681,-14126.86328896,0.00016562,2]
[323131326,1713701445690,-450.0,0.00016593,2]
[323131327,1713701445698,-182.26159151,0.00016612,2]
[323131328,1713701445710,-2317.28649468,0.000167,2]
[323131329,1713701445719,-500.0,0.00016711,2]
[323131330,1713701445729,-500.0,0.00016711,2]
[323131331,1713701445738,-300.0,0.00016711,2]
[323131332,1713701445747,-2305.86,0.00016711,2]
[323131333,1713701445756,-300.0,0.00016711,2]
[323131334,1713701445766,-670.0,0.00016712,2]
[323131335,1713701445775,-284.32561242,0.00016712,2]
[323131336,1713701445784,-672.26,0.00016712,2]
[323131337,1713701445793,-639.47,0.00016712,2]
[323131338,1713701445802,-406.74,0.00016712,2]
[323131339,1713701445812,-782.39,0.00016712,2]
[323131340,1713701445822,-360.2,0.00016712,2]
[323131341,1713701445832,-969.93,0.00016712,2]
[323131342,1713701445841,-500.0,0.00016712,2]
[323131343,1713701445850,-500.0,0.00016712,2]
[323131344,1713701445859,-500.0,0.00016712,2]
[323131345,1713701445868,-500.0,0.00016712,2]
[323131346,1713701445877,-628.71,0.00016712,2]
[323131347,1713701445886,-417.2,0.00016712,2]
[323131348,1713701445896,-500.0,0.00016712,2]
[323131349,1713701445905,-911.79,0.00016712,2]
[323131350,1713701445915,-716.98,0.00016712,2]
[323131351,1713701445925,-500.0,0.00016712,2]
[323131352,1713701445934,-500.0,0.00016712,2]
[323131353,1713701445943,-500.0,0.00016712,2]
[323131354,1713701445954,-500.0,0.00016712,2]
[323131355,1713701445963,-155.71,0.00016712,2]
[323131356,1713701445972,-213.43,0.00016712,2]
[323131357,1713701445981,-522.84,0.00016712,2]
[323131358,1713701445991,-851.02,0.00016712,2]
[323131359,1713701446000,-500.36,0.00016712,2]
[323131360,1713701446009,-757.25,0.00016712,2]
[323131361,1713701446018,-664.11,0.00016712,2]
[323131362,1713701446027,-1424.32,0.00016712,2]
[323131363,1713701446037,-210.9,0.00016712,2]
[323131364,1713701446045,-729.33,0.00016712,2]
[323131365,1713701446055,-1454.42,0.00016712,2]
[323131366,1713701446064,-639.96,0.00016712,2]
[323131367,1713701446073,-916.54,0.00016712,2]
[323131368,1713701446083,-812.29,0.00016712,2]
[323131369,1713701446093,-1223.81,0.00016712,2]
[323131370,1713701446102,-1281.55,0.00016712,2]
[323131371,1713701446111,-1047.76,0.00016712,2]
[323131372,1713701446120,-836.56,0.00016712,2]
[323131373,1713701446129,-500.0,0.00016712,2]
[323131374,1713701446138,-500.0,0.00016712,2]
[323131375,1713701446148,-1308.62,0.00016712,2]
[323131376,1713701446157,-500.0,0.00016712,2]
[323131377,1713701446166,-974.13,0.00016712,2]
[323131378,1713701446175,-638.72,0.00016712,2]
[323131379,1713701446185,-1106.35,0.00016712,2]
[323131380,1713701446194,-619.23,0.00016712,2]
[323131381,1713701446205,-589.19,0.00016712,2]
[323131382,1713701446214,-1852.52,0.00016712,2]
[323131383,1713701446223,-1061.07,0.00016712,2]
[323131384,1713701446231,-596.31,0.00016712,2]
[323131385,1713701446241,-500.0,0.00016712,2]
[323131386,1713701446250,-888.05,0.00016712,2]
[323131387,1713701446263,-515.76,0.00016712,2]
[323131388,1713701446273,-500.0,0.00016712,2]
[323131389,1713701446283,-500.0,0.00016712,2]
[323131390,1713701446292,-500.0,0.00016712,2]
[323131391,1713701446302,-500.0,0.00016712,2]
[323131392,1713701446311,-1054.7,0.00016712,2]
[323131393,1713701446320,-1717.81,0.00016712,2]
[323131394,1713701446332,-256.86,0.00016712,2]
[323131395,1713701446341,-936.84,0.00016712,2]
[323131396,1713701446350,-535.56,0.00016712,2]
[323131397,1713701446359,-1131.8,0.00016712,2]
[323131398,1713701446369,-1779.9,0.00016712,2]
[323131399,1713701446378,-462.72856898,0.00016712,2]
[323131400,1713701446387,-610.89,0.00016712,2]
[323131401,1713701446396,-258.58,0.00016712,2]
[323131402,1713701446406,-1185.99,0.00016712,2]
[323131403,1713701446415,-35.9801792,0.00016712,2]
[323131404,1713701446440,-196.9598208,0.00016712,2]
[323131405,1713701446449,-500.0,0.00016712,2]
[323131406,1713701446461,-235.79,0.00016712,2]
[323131407,1713701446471,-999.99,0.00016712,2]
[323131408,1713701446481,-410.39,0.00016712,2]
[323131409,1713701446489,-1232.59,0.00016712,2]
[323131410,1713701446498,-857.29,0.00016712,2]
[323131411,1713701446507,-948.8,0.00016712,2]
[323131412,1713701446516,-749.17421418,0.00016712,2]
[323131413,1713701446527,-40.43578582,0.00016712,2]
[323131414,1713701446536,-500.0,0.00016712,2]
[323131415,1713701446545,-1141.66,0.00016712,2]
[323131416,1713701446554,-398.25638079,0.00016712,2]
[323131417,1713701446726,-101.74361921,0.00016712,2]
[323131418,1713701446735,-500.0,0.00016712,2]
[323131419,1713701446744,-847.98,0.00016712,2]
[323131420,1713701446753,-444.78320299,0.00016712,2]
[323131421,1713701446763,-787.7,0.00016712,2]
[323131422,1713701446774,-1197.07,0.00016712,2]
[323131423,1713701446783,-804.33,0.00016712,2]
[323131424,1713701446792,-996.42,0.00016712,2]
[323131425,1713701446801,-500.0,0.00016712,2]
[323131426,1713701446810,-672.35,0.00016712,2]
[323131427,1713701446819,-500.0,0.00016712,2]
[323131428,1713701446829,-500.0,0.00016712,2]
[323131429,1713701446838,-821.33,0.00016712,2]
[323131430,1713701446847,-461.62,0.00016712,2]
[323131431,1713701446856,-500.0,0.00016712,2]
[323131432,1713701446865,-500.0,0.00016712,2]
[323131433,1713701446874,-500.0,0.00016712,2]
[323131434,1713701446883,-685.27,0.00016712,2]
[323131435,1713701446892,-172.2942557,0.00016712,2]
[323131436,1713701446902,-802.0,0.00016712,2]
[323131437,1713701446911,-1331.29,0.00016712,2]
[323131438,1713701446920,-1428.92,0.00016712,2]
[323131439,1713701446930,-526.59,0.00016712,2]
[323131440,1713701446939,-1089.56,0.00016712,2]
[323131441,1713701446949,-350.03,0.00016712,2]
[323131442,1713701446960,-500.0,0.00016712,2]
[323131443,1713701446969,-500.0,0.00016712,2]
[323131444,1713701446979,-500.0,0.00016712,2]
[323131445,1713701446988,-545.07886135,0.00016712,2]
[323131446,1713701446997,-500.0,0.00016712,2]
[323131447,1713701447007,-500.0,0.00016712,2]
[323131448,1713701447016,-500.0,0.00016712,2]
[323131449,1713701447025,-500.0,0.00016712,2]
[323131450,1713701447035,-500.0,0.00016712,2]
[323131451,1713701447045,-500.0,0.00016712,2]
[323131452,1713701447055,-626.95,0.00016712,2]
[323131453,1713701447063,-753.37,0.00016712,2]
[323131454,1713701447073,-500.0,0.00016712,2]
[323131455,1713701447082,-243.46,0.00016712,2]
[323131456,1713701447092,-1341.63,0.00016712,2]
[323131457,1713701447101,-199.70481969,0.00016712,2]
[323131458,1713701447110,-500.0,0.00016712,2]
[323131459,1713701447119,-415.05219872,0.00016712,2]
[323131460,1713701447132,-84.94780128,0.00016712,2]
[323131461,1713701447141,-1167.65,0.00016712,2]
[323131462,1713701447151,-1166.75,0.00016712,2]
[323131463,1713701447160,-500.0,0.00016712,2]
[323131464,1713701447170,-900.17,0.00016712,2]
[323131465,1713701447180,-500.0,0.00016712,2]
[323131466,1713701447190,-488.53,0.00016712,2]
[323131467,1713701447199,-196.12,0.00016712,2]
[323131468,1713701447210,-816.42,0.00016712,2]
[323131469,1713701447219,-500.0,0.00016712,2]
[323131470,1713701447228,-500.0,0.00016712,2]
[323131471,1713701447237,-500.0,0.00016712,2]
[323131472,1713701447247,-500.0,0.00016712,2]
[323131473,1713701447259,-956.86,0.00016712,2]
[323131474,1713701447268,-500.0,0.00016712,2]
[323131475,1713701447277,-674.62,0.00016712,2]
[323131476,1713701447286,-500.0,0.00016712,2]
[323131477,1713701447296,-500.0,0.00016712,2]
[323131478,1713701447306,-500.0,0.00016712,2]
[323131479,1713701447316,-612.7,0.00016712,2]
[323131480,1713701447325,-985.48,0.00016712,2]
[323131481,1713701447338,-531.93,0.00016712,2]
[323131482,1713701447348,-1032.73,0.00016712,2]
[323131483,1713701447359,-254.13,0.00016712,2]
[323131484,1713701447369,-500.0,0.00016712,2]
[323131485,1713701447378,-588.93,0.00016712,2]
[323131486,1713701447549,-596.08,0.00016712,2]
[323131487,1713701447559,-542.16,0.00016712,2]
[323131488,1713701447569,-500.0,0.00016712,2]
[323131489,1713701447578,-500.0,0.00016712,2]
[323131490,1713701447587,-914.0,0.00016712,2]
[323131491,1713701447596,-500.0,0.00016712,2]
[323131492,1713701447606,-46.66151702,0.00016712,2]
[323131493,1713701447916,-360.364316,0.00016437,2]
[323131494,1713701447927,-1013.70254576,0.00016437,2]
[323131495,1713701447939,-218.18766287,0.00016437,2]
[323131496,1713701447949,-893.02,0.00016438,2]
[323131497,1713701447959,-453.33848298,0.00016712,2]
[323131498,1713701447968,-1141.68,0.00016712,2]
[323131499,1713701447977,-500.0,0.00016712,2]
[323131500,1713701447986,-500.0,0.00016712,2]
[323131501,1713701447995,-1213.76,0.00016712,2]
[323131502,1713701448005,-500.0,0.00016712,2]
[323131503,1713701448016,-401.0,0.00016712,2]
[323131504,1713701448026,-500.0,0.00016712,2]
[323131505,1713701448036,-624.8,0.00016712,2]
[323131506,1713701448047,-150.0,0.00016712,2]
[323131507,1713701448056,-500.0,0.00016712,2]
[323131508,1713701448067,-1226.09,0.00016712,2]
[323131509,1713701448076,-921.31,0.00016712,2]
[323131510,1713701448085,-312.22,0.00016712,2]
[323131511,1713701448095,-889.01,0.00016712,2]
[323131512,1713701448104,-500.0,0.00016712,2]
[323131513,1713701448113,-220.78,0.00016712,2]
[323131514,1713701448123,-500.0,0.00016712,2]
[323131515,1713701448132,-904.68,0.00016712,2]
[323131516,1713701448142,-224.23937416,0.00016712,2]
[323131517,1713701448161,-325.54387306,0.00016712,2]
[323131518,1713701448171,-920.68,0.00016712,2]
[323131519,1713701448181,-659.68,0.00016712,2]
[323131520,1713701448190,-500.0,0.00016712,2]
[323131521,1713701448199,-500.0,0.00016712,2]
[323131522,1713701448209,-839.24,0.00016712,2]
[323131523,1713701448218,-602.88,0.00016712,2]
[323131524,1713701448227,-840.67,0.00016712,2]
[323131525,1713701448236,-708.36,0.00016712,2]
[323131526,1713701448245,-1062.39,0.00016712,2]
[323131527,1713701448257,-200.62194858,0.00016712,2]
[323131528,1713701448269,-373.37805142,0.00016712,2]
[323131529,1713701448278,-19.10292838,0.00016712,2]
[323131530,1713701448299,-662.01707162,0.00016712,2]
[323131531,1713701448308,-500.0,0.00016712,2]
[323131532,1713701448317,-500.0,0.00016712,2]
[323131533,1713701448326,-500.0,0.00016712,2]
[323131534,1713701448338,-500.0,0.00016712,2]
[323131535,1713701448348,-500.0,0.00016712,2]
[323131536,1713701448357,-465.46,0.00016712,2]
[323131537,1713701448366,-496.91,0.00016712,2]
[323131538,1713701448375,-500.0,0.00016712,2]
[323131539,1713701448385,-500.0,0.00016712,2]
[323131540,1713701448394,-924.92,0.00016712,2]
[323131541,1713701448403,-500.0,0.00016712,2]
[323131542,1713701448412,-6.47532238,0.00016712,2]
[323131543,1713701449111,-3068.14352187,0.00016436,2]
[323131544,1713701449121,-2321.35455575,0.00016437,2]
[323131545,1713701449131,-1094.28467762,0.00016712,2]
[323131546,1713701449141,-1188.64,0.00016712,2]
[323131547,1713701449152,-557.41977362,0.00016712,2]
[323131548,1713701449161,-722.65,0.00016712,2]
[323131549,1713701449170,-500.0,0.00016712,2]
[323131550,1713701449180,-500.0,0.00016712,2]
[323131551,1713701449190,-500.0,0.00016712,2]
[323131552,1713701449199,-500.0,0.00016712,2]
[323131553,1713701449211,-1299.44,0.00016712,2]
[323131554,1713701449221,-534.36,0.00016712,2]
[323131555,1713701449231,-500.0,0.00016712,2]
[323131556,1713701449241,-810.95,0.00016712,2]
[323131557,1713701449251,-304.03,0.00016712,2]
[323131558,1713701449265,-500.0,0.00016712,2]
[323131559,1713701449274,-500.0,0.00016712,2]
[323131560,1713701449284,-1614.76,0.00016712,2]
[323131561,1713701449295,-1214.25,0.00016712,2]
[323131562,1713701449304,-684.32,0.00016712,2]
[323131563,1713701449313,-500.0,0.00016712,2]
[323131564,1713701449322,-726.59,0.00016712,2]
[323131565,1713701449334,-500.0,0.00016712,2]
[323131566,1713701449343,-333.53326247,0.00016712,2]
[323131567,1713701449354,-165.82,0.00016712,2]
[323131568,1713701449363,-533.57,0.00016712,2]
[323131569,1713701449372,-500.0,0.00016712,2]
[323131570,1713701449381,-1139.21,0.00016712,2]
[323131571,1713701449391,-1566.16,0.00016712,2]
[323131572,1713701449400,-1387.9,0.00016712,2]
[323131573,1713701449410,-500.0,0.00016712,2]
[323131574,1713701449419,-500.0,0.00016712,2]
[323131575,1713701449429,-532.49,0.00016712,2]
[323131576,1713701449439,-500.0,0.00016712,2]
[323131577,1713701449448,-1903.88,0.00016712,2]
[323131578,1713701449459,-704.9,0.00016712,2]
[323131579,1713701449468,-500.0,0.00016712,2]
[323131580,1713701449477,-231.39,0.00016712,2]
[323131581,1713701449487,-500.0,0.00016712,2]
[323131582,1713701449497,-500.0,0.00016712,2]
[323131583,1713701449507,-500.0,0.00016712,2]
[323131584,1713701449516,-903.18,0.00016712,2]
[323131585,1713701449528,-500.0,0.00016712,2]
[323131586,1713701449537,-500.0,0.00016712,2]
[323131587,1713701449546,-1602.39,0.00016712,2]
[323131588,1713701449555,-500.0,0.00016712,2]
[323131589,1713701449565,-1124.97,0.00016712,2]
[323131590,1713701449574,-1431.27,0.00016712,2]
[323131591,1713701449583,-500.0,0.00016712,2]
[323131592,1713701449593,-500.0,0.00016712,2]
[323131593,1713701449602,-885.5,0.00016712,2]
[323131594,1713701449611,-348.05,0.00016712,2]
[323131595,1713701449621,-893.67,0.00016712,2]
[323131596,1713701449631,-500.0,0.00016712,2]
[323131597,1713701449640,-643.43,0.00016712,2]
[323131598,1713701449650,-500.0,0.00016712,2]
[323131599,1713701449659,-500.0,0.00016712,2]
[323131600,1713701449668,-500.0,0.00016712,2]
[323131601,1713701449678,-707.14,0.00016712,2]
[323131602,1713701449687,-650.44,0.00016712,2]
[323131603,1713701449696,-500.0,0.00016712,2]
[323131604,1713701449706,-726.71,0.00016712,2]
[323131605,1713701449715,-500.0,0.00016712,2]
[323131606,1713701449724,-1320.9,0.00016712,2]
[323131607,1713701449734,-500.0,0.00016712,2]
[323131608,1713701449743,-500.0,0.00016712,2]
[323131609,1713701449752,-500.0,0.00016712,2]
[323131610,1713701449761,-669.09,0.00016712,2]
[323131611,1713701449771,-317.93,0.00016712,2]
[323131612,1713701449780,-500.0,0.00016712,2]
[323131613,1713701449790,-500.0,0.00016712,2]
[323131614,1713701449799,-500.0,0.00016712,2]
[323131615,1713701449809,-500.0,0.00016712,2]
[323131616,1713701449819,-1555.49,0.00016712,2]
[323131617,1713701449829,-964.05,0.00016712,2]
[323131618,1713701449838,-1135.47,0.00016712,2]
[323131619,1713701449848,-667.45,0.00016712,2]
[323131620,1713701449857,-864.17,0.00016712,2]
[323131621,1713701449867,-607.34,0.00016712,2]
[323131622,1713701449877,-500.0,0.00016712,2]
[323131623,1713701449886,-1630.31,0.00016712,2]
[323131624,1713701449896,-500.0,0.00016712,2]
[323131625,1713701449906,-946.1,0.00016712,2]
[323131626,1713701449915,-1426.61,0.00016712,2]
[323131627,1713701449925,-1026.66,0.00016712,2]
[323131628,1713701449934,-2402.26,0.00016712,2]
[323131629,1713701449944,-455.41074564,0.00016712,2]
[323131630,1713701449953,-501.95543577,0.00016712,2]
[323131631,1713701449964,-720.92,0.00016712,2]
[323131632,1713701450172,-1417.34,0.00016712,2]
[323131633,1713701450182,-500.0,0.00016712,2]
[323131634,1713701450191,-836.38,0.00016712,2]
[323131635,1713701450201,-501.53661146,0.00016712,2]
[323131636,1713701450211,-500.0,0.00016712,2]
[323131637,1713701450221,-500.0,0.00016712,2]
[323131638,1713701450231,-566.51,0.00016712,2]
[323131639,1713701450240,-793.96,0.00016712,2]
[323131640,1713701450250,-2542.44,0.00016712,2]
[323131641,1713701450264,-500.0,0.00016712,2]
[323131642,1713701450273,-1396.3,0.00016712,2]
[323131643,1713701450283,-879.52,0.00016712,2]
[323131644,1713701450293,-500.0,0.00016712,2]
[323131645,1713701450302,-1476.27,0.00016712,2]
[323131646,1713701450312,-500.0,0.00016712,2]
[323131647,1713701450321,-360.45,0.00016712,2]
[323131648,1713701450332,-500.0,0.00016712,2]
[323131649,1713701450342,-311.43,0.00016712,2]
[323131650,1713701450352,-798.14,0.00016712,2]
[323131651,1713701450362,-500.0,0.00016712,2]
[323131652,1713701450372,-500.0,0.00016712,2]
[323131653,1713701450381,-1525.8,0.00016712,2]
[323131654,1713701450391,-604.28,0.00016712,2]
[323131655,1713701450400,-1120.59,0.00016712,2]
[323131656,1713701450410,-154.07,0.00016712,2]
[323131657,1713701450419,-1405.45,0.00016712,2]
[323131658,1713701450430,-718.88,0.00016712,2]
[323131659,1713701450439,-1037.34,0.00016712,2]
[323131660,1713701450448,-500.0,0.00016712,2]
[323131661,1713701450458,-1039.47,0.00016712,2]
[323131662,1713701450469,-500.0,0.00016712,2]
[323131663,1713701450478,-853.19,0.00016712,2]
[323131664,1713701450487,-494.47,0.00016712,2]
[323131665,1713701450497,-500.0,0.00016712,2]
[323131666,1713701450506,-1295.15,0.00016712,2]